fUSD/lending_fUSD_20240915
["ID","MTS","AMOUNT","RATE_DAILY","PERIOD"]
[338207895,1726386641252,-1215.28,0.00012784,2]
[338207896,1726386641261,-1018.5,0.00012784,2]
[338207898,1726386641270,-500.0,0.00012784,2]
[338207900,1726386641281,-2164.46,0.00012784,2]
[338207902,1726386641291,-500.0,0.00012784,2]
[338207904,1726386641300,-500.0,0.00012784,2]
[338207906,1726386641310,-560.35,0.00012784,2]
[338207908,1726386641319,-500.0,0.00012784,2]
[338207910,1726386641329,-1007.64,0.00012784,2]
[338207912,1726386641339,-500.0,0.00012784,2]
[338207914,1726386641348,-1752.2,0.00012784,2]
[338207916,1726386641358,-500.0,0.00012784,2]
[338207918,1726386641368,-500.0,0.00012784,2]
[338207920,1726386641378,-500.0,0.00012784,2]
[338207922,1726386641387,-500.0,0.00012784,2]
[338207924,1726386641397,-1728.97,0.00012784,2]
[338207926,1726386641407,-500.0,0.00012784,2]
[338207928,1726386641417,-500.0,0.00012784,2]
[338207930,1726386641427,-500.0,0.00012784,2]
[338207932,1726386641436,-1023.85,0.00012784,2]
[338207934,1726386641446,-500.0,0.00012784,2]
[338207936,1726386641456,-2030.25,0.00012784,2]
[338207938,1726386641466,-500.0,0.00012784,2]
[338207940,1726386641476,-500.38,0.00012784,2]
[338207942,1726386641486,-575.23,0.00012784,2]
[338207943,1726386641497,-1137.78,0.00012784,2]
[338207946,1726386641507,-2008.53,0.00012784,2]
[338207947,1726386641517,-500.0,0.00012784,2]
[338207949,1726386641527,-500.0,0.00012784,2]
[338207951,1726386641539,-2180.97,0.00012784,2]
[338207953,1726386641549,-1054.24,0.00012784,2]
[338207955,1726386641559,-500.0,0.00012784,2]
[338207957,1726386641572,-1000.0,0.00012784,2]
[338207959,1726386641585,-500.0,0.00012784,2]
[338207961,1726386641595,-500.0,0.00012784,2]
[338207962,1726386641604,-1756.97,0.00012784,2]
[338207964,1726386641613,-1322.99,0.00012784,2]
[338207966,1726386641623,-1771.35,0.00012784,2]
[338207968,1726386641632,-1097.13,0.00012784,2]
[338207970,1726386641642,-1068.8,0.00012784,2]
[338207971,1726386641651,-1079.61,0.00012784,2]
[338207973,1726386641661,-1921.61,0.00012784,2]
[338207975,1726386641672,-1745.7,0.00012784,2]
[338207977,1726386641681,-500.0,0.00012784,2]
[338207979,1726386641691,-1048.03,0.00012784,2]
[338207981,1726386641701,-500.0,0.00012784,2]
[338207983,1726386641710,-500.0,0.00012784,2]
[338207985,1726386641719,-809.48,0.00012784,2]
[338207987,1726386641729,-642.2,0.00012784,2]
[338207989,1726386641739,-1530.88,0.00012784,2]
[338207991,1726386641749,-1722.16,0.00012784,2]
[338207993,1726386641758,-366.4014224,0.00012784,2]
[338207995,1726386641767,-500.0,0.00012784,2]
[338207997,1726386641777,-500.0,0.00012784,2]
[338207998,1726386641786,-707.09,0.00012784,2]
[338208000,1726386641796,-1141.18,0.00012784,2]
[338208002,1726386641805,-500.0,0.00012784,2]
[338208004,1726386641814,-500.0,0.00012784,2]
[338208005,1726386641824,-1303.63,0.00012784,2]
[338208007,1726386641835,-500.0,0.00012784,2]
[338208009,1726386641844,-1272.51,0.00012784,2]
[338208011,1726386641854,-1822.8,0.00012784,2]
[338208013,1726386641864,-500.0,0.00012784,2]
[338208015,1726386641874,-500.0,0.00012784,2]
[338208017,1726386641884,-2551.42,0.00012784,2]
[338208019,1726386641895,-500.0,0.00012784,2]
[338208021,1726386641905,-500.0,0.00012784,2]
[338208024,1726386641916,-1331.23,0.00012784,2]
[338208026,1726386641926,-2407.69,0.00012784,2]
[338208028,1726386641936,-500.0,0.00012784,2]
[338208030,1726386641946,-585.16,0.00012784,2]
[338208032,1726386641955,-819.66,0.00012784,2]
[338208034,1726386641964,-923.56,0.00012784,2]
[338208036,1726386641974,-500.0,0.00012784,2]
[338208037,1726386641984,-3739.75,0.00012784,2]
[338208050,1726386642180,-645.21,0.00012784,2]
[338208051,1726386642223,-500.0,0.00012784,2]
[338208052,1726386642233,-500.0,0.00012784,2]
[338208053,1726386642243,-500.0,0.00012784,2]
[338208054,1726386642253,-500.0,0.00012784,2]
[338208055,1726386642262,-1112.04,0.00012784,2]
[338208056,1726386642273,-593.76,0.00012784,2]
[338208057,1726386642283,-500.0,0.00012784,2]
[338208058,1726386642292,-1679.43,0.00012784,2]
[338208059,1726386642302,-1331.71,0.00012784,2]
[338208060,1726386642312,-1682.35,0.00012784,2]
[338208061,1726386642321,-1081.85,0.00012784,2]
[338208062,1726386642331,-500.0,0.00012784,2]
[338208063,1726386642341,-1202.52,0.00012784,2]
[338208064,1726386642351,-500.0,0.00012784,2]
[338208065,1726386642360,-896.4,0.00012784,2]
[338208066,1726386642370,-500.0,0.00012784,2]
[338208067,1726386642381,-820.29,0.00012784,2]
[338208068,1726386642391,-500.0,0.00012784,2]
[338208069,1726386642402,-500.0,0.00012784,2]
[338208070,1726386642411,-1736.63,0.00012784,2]
[338208071,1726386642421,-500.0,0.00012784,2]
[338208072,1726386642431,-1646.47,0.00012784,2]
[338208073,1726386642441,-500.0,0.00012784,2]
[338208074,1726386642450,-1277.04,0.00012784,2]
[338208076,1726386642460,-500.0,0.00012784,2]
[338208078,1726386642470,-500.0,0.00012784,2]
[338208080,1726386642480,-1552.97,0.00012784,2]
[338208082,1726386642491,-1253.7,0.00012784,2]
[338208083,1726386642500,-695.12,0.00012784,2]
[338208085,1726386642510,-875.0,0.00012784,2]
[338208087,1726386642520,-1193.43,0.00012784,2]
[338208089,1726386642530,-500.0,0.00012784,2]
[338208091,1726386642541,-655.93,0.00012784,2]
[338208093,1726386642551,-665.56,0.00012784,2]
[338208095,1726386642560,-740.38,0.00012784,2]
[338208097,1726386642571,-500.0,0.00012784,2]
[338208099,1726386642582,-824.47,0.00012784,2]
[338208100,1726386642592,-702.34,0.00012784,2]
[338208102,1726386642602,-500.0,0.00012784,2]
[338208104,1726386642611,-591.05,0.00012784,2]
[338208106,1726386642621,-1735.51,0.00012784,2]
[338208108,1726386642631,-500.0,0.00012784,2]
[338208110,1726386642640,-3203.15,0.00012784,2]
[338208112,1726386642652,-1729.91,0.00012784,2]
[338208114,1726386642662,-573.4,0.00012784,2]
[338208116,1726386642671,-500.0,0.00012784,2]
[338208118,1726386642680,-500.0,0.00012784,2]
[338208120,1726386642690,-1659.93,0.00012784,2]
[338208122,1726386642700,-500.0,0.00012784,2]
[338208124,1726386642710,-636.82,0.00012784,2]
[338208126,1726386642720,-557.85,0.00012784,2]
[338208128,1726386642730,-1330.31,0.00012784,2]
[338208130,1726386642740,-1288.74,0.00012784,2]
[338208132,1726386642750,-500.0,0.00012784,2]
[338208134,1726386642759,-2152.07,0.00012784,2]
[338208136,1726386642769,-746.29,0.00012784,2]
[338208138,1726386642778,-500.0,0.00012784,2]
[338208140,1726386642788,-719.82,0.00012784,2]
[338208141,1726386642798,-500.0,0.00012784,2]
[338208143,1726386642808,-500.0,0.00012784,2]
[338208145,1726386642818,-38355.61,0.00012784,2]
[338208148,1726386642828,-1048.89,0.00012784,2]
[338208149,1726386642838,-500.0,0.00012784,2]
[338208151,1726386642848,-3992.45,0.00012784,2]
[338208153,1726386642858,-500.0,0.00012784,2]
[338208155,1726386642868,-777.89,0.00012784,2]
[338208157,1726386642877,-1857.01,0.00012784,2]
[338208159,1726386642888,-500.0,0.00012784,2]
[338208161,1726386642898,-721.79,0.00012784,2]
[338208163,1726386642906,-229.45000062,0.00012784,2]
[338208165,1726386642917,-500.0,0.00012784,2]
[338208167,1726386642927,-1741.68,0.00012784,2]
[338208170,1726386642938,-1450.58,0.00012784,2]
[338208171,1726386642948,-1817.29,0.00012784,2]
[338208174,1726386642958,-529.93,0.00012784,2]
[338208176,1726386642968,-1382.77,0.00012784,2]
[338208178,1726386642979,-500.0,0.00012784,2]
[338208180,1726386642989,-522.77,0.00012784,2]
[338208182,1726386642999,-2904.12,0.00012784,2]
[338208184,1726386643009,-500.0,0.00012784,2]
[338208186,1726386643020,-772.62,0.00012784,2]
[338208188,1726386643030,-500.0,0.00012784,2]
[338208190,1726386643040,-872.52,0.00012784,2]
[338208192,1726386643049,-1830.5,0.00012784,2]
[338208194,1726386643059,-655.06,0.00012784,2]
[338208196,1726386643069,-744.46,0.00012784,2]
[338208198,1726386643078,-694.99,0.00012784,2]
[338208200,1726386643088,-1096.99,0.00012784,2]
[338208201,1726386643097,-760.02,0.00012784,2]
[338208204,1726386643107,-500.0,0.00012784,2]
[338208206,1726386643118,-651.42,0.00012784,2]
[338208207,1726386643127,-906.05,0.00012784,2]
[338208209,1726386643136,-1788.79,0.00012784,2]
[338208211,1726386643146,-500.0,0.00012784,2]
[338208213,1726386643156,-500.0,0.00012784,2]
[338208215,1726386643166,-519.58,0.00012784,2]
[338208217,1726386643176,-500.0,0.00012784,2]
[338208219,1726386643186,-668.39,0.00012784,2]
[338208221,1726386643196,-1669.84,0.00012784,2]
[338208223,1726386643205,-500.0,0.00012784,2]
[338208225,1726386643214,-500.0,0.00012784,2]
[338208228,1726386643225,-991.26,0.00012784,2]
[338208230,1726386643235,-825.92,0.00012784,2]
[338208232,1726386643244,-2051.03,0.00012784,2]
[338208234,1726386643254,-805.04,0.00012784,2]
[338208236,1726386643263,-2617.08,0.00012784,2]
[338208238,1726386643273,-4635.5,0.00012784,2]
[338208240,1726386643283,-500.0,0.00012784,2]
[338208242,1726386643293,-1635.85,0.00012784,2]
[338208244,1726386643304,-1880.08,0.00012784,2]
[338208246,1726386643314,-1646.13,0.00012784,2]
[338208248,1726386643324,-500.0,0.00012784,2]
[338208250,1726386643333,-574.03,0.00012784,2]
[338208251,1726386643343,-535.64,0.00012784,2]
[338208253,1726386643353,-759.97,0.00012784,2]
[338208255,1726386643363,-500.0,0.00012784,2]
[338208258,1726386643372,-500.0,0.00012784,2]
[338208260,1726386643382,-1910.72,0.00012784,2]
[338208262,1726386643392,-500.0,0.00012784,2]
[338208264,1726386643402,-830.47,0.00012784,2]
[338208266,1726386643411,-500.0,0.00012784,2]
[338208268,1726386643420,-845.48,0.00012784,2]
[338208270,1726386643431,-540.36,0.00012784,2]
[338208272,1726386643440,-615.12,0.00012784,2]
[338208274,1726386643450,-790.72,0.00012784,2]
[338208276,1726386643461,-500.0,0.00012784,2]
[338208278,1726386643470,-500.0,0.00012784,2]
[338208280,1726386643480,-1339.68,0.00012784,2]
[338208282,1726386643490,-732.76,0.00012784,2]
[338208284,1726386643501,-500.0,0.00012784,2]
[338208286,1726386643510,-2517.19,0.00012784,2]
[338208288,1726386643521,-500.0,0.00012784,2]
[338208290,1726386643530,-1116.19,0.00012784,2]
[338208292,1726386643540,-1753.92,0.00012784,2]
[338208294,1726386643550,-500.0,0.00012784,2]
[338208296,1726386643560,-3262.83,0.00012784,2]
[338208298,1726386643574,-500.0,0.00012784,2]
[338208300,1726386643583,-2139.07,0.00012784,2]
[338208302,1726386643593,-500.0,0.00012785,2]
[338208304,1726386643603,-500.0,0.00012785,2]
[338208306,1726386643613,-500.0,0.00012785,2]
[338208308,1726386643622,-500.0,0.00012785,2]
[338208310,1726386643632,-500.0,0.00012785,2]
[338208312,1726386643641,-500.0,0.00012785,2]
[338208314,1726386643651,-500.0,0.00012785,2]
[338208315,1726386643660,-500.0,0.00012785,2]
[338208317,1726386643670,-500.0,0.00012785,2]
[338208319,1726386643680,-283.48973695,0.00012785,2]
[338208321,1726386643690,-486.08479194,0.00012785,2]
[338208323,1726386643701,-500.0,0.00012785,2]
[338208325,1726386643710,-500.0,0.00012785,2]
[338208327,1726386643720,-500.0,0.00012785,2]
[338208329,1726386643730,-500.0,0.00012785,2]
[338208331,1726386643739,-197.80734564,0.00012785,2]
[338208333,1726386643749,-986.14,0.00012785,2]
[338208335,1726386643760,-500.0,0.00012785,2]
[338208337,1726386643770,-1104.91,0.00012785,2]
[338208339,1726386643780,-603.64,0.00012785,2]
[338208341,1726386643789,-1291.31,0.00012785,2]
[338208343,1726386643799,-1489.25,0.00012785,2]
[338208345,1726386643808,-1214.79,0.00012785,2]
[338208347,1726386643819,-644.7,0.00012785,2]
[338208349,1726386643829,-500.0,0.00012785,2]
[338208351,1726386643838,-734.64,0.00012785,2]
[338208353,1726386643848,-604.37,0.00012785,2]
[338208355,1726386643858,-1322.72,0.00012785,2]
[338208357,1726386643867,-500.0,0.00012785,2]
[338208358,1726386643877,-706.96,0.00012785,2]
[338208360,1726386643887,-819.4,0.00012785,2]
[338208362,1726386643896,-1793.07,0.00012785,2]
[338208364,1726386643906,-2382.64,0.00012785,2]
[338208366,1726386643915,-500.0,0.00012785,2]
[338208368,1726386643925,-559.68,0.00012785,2]
[338208370,1726386643935,-2812.38,0.00012785,2]
[338208372,1726386643945,-1215.38,0.00012785,2]
[338208373,1726386643954,-886.59,0.00012785,2]
[338208375,1726386643964,-1390.11,0.00012785,2]
[338208377,1726386643974,-500.0,0.00012785,2]
[338208379,1726386643984,-1865.48,0.00012785,2]
[338208381,1726386643994,-1240.08,0.00012785,2]
[338208383,1726386644005,-1091.54,0.00012785,2]
[338208385,1726386644015,-986.87,0.00012785,2]
[338208387,1726386644024,-618.57,0.00012785,2]
[338208389,1726386644034,-532.18,0.00012785,2]
[338208391,1726386644044,-2204.89,0.00012785,2]
[338208393,1726386644054,-500.0,0.00012785,2]
[338208395,1726386644063,-1196.34,0.00012785,2]
[338208397,1726386644073,-1877.34,0.00012785,2]
[338208399,1726386644082,-1544.19,0.00012785,2]
[338208400,1726386644092,-1642.31,0.00012785,2]
[338208401,1726386644101,-500.0,0.00012785,2]
[338208402,1726386644110,-2122.82,0.00012785,2]
[338208403,1726386644120,-500.0,0.00012785,2]
[338208404,1726386644129,-1235.92,0.00012785,2]
[338208405,1726386644139,-500.0,0.00012785,2]
[338208406,1726386644148,-1744.99,0.00012785,2]
[338208407,1726386644157,-500.0,0.00012785,2]
[338208408,1726386644167,-2206.82,0.00012785,2]
[338208409,1726386644176,-2524.23,0.00012785,2]
[338208410,1726386644185,-500.0,0.00012785,2]
[338208411,1726386644195,-500.0,0.00012785,2]
[338208412,1726386644204,-2100.75,0.00012785,2]
[338208413,1726386644214,-2501.11,0.00012785,2]
[338208414,1726386644222,-846.95,0.00012785,2]
[338208415,1726386644232,-539.57,0.00012785,2]
[338208416,1726386644242,-1470.93,0.00012785,2]
[338208417,1726386644251,-3358.33,0.00012785,2]
[338208418,1726386644261,-561.13,0.00012786,2]
[338208419,1726386644270,-2011.23,0.00012786,2]
[338208420,1726386644280,-2475.01,0.00012786,2]
[338208421,1726386644289,-500.0,0.00012786,2]
[338208422,1726386644299,-677.73,0.00012786,2]
[338208423,1726386644309,-1367.57,0.00012786,2]
[338208424,1726386644318,-1772.7,0.00012786,2]
[338208425,1726386644328,-1342.24,0.00012786,2]
[338208426,1726386644338,-613.39,0.00012786,2]
[338208427,1726386644347,-3121.53,0.00012786,2]
[338208428,1726386644356,-1200.0,0.000128,4]
[338208429,1726386644365,-158.10949927,0.00012858,2]
[338208430,1726386644375,-1530.95158959,0.00012885,2]
[338208431,1726386644385,-209.40795868,0.00012886,2]
[338208432,1726386644394,-500.0,0.00012886,2]
[338208433,1726386644404,-561.98,0.00012886,2]
[338208434,1726386644414,-500.0,0.00012886,2]
[338208435,1726386644425,-500.0,0.00012886,2]
[338208436,1726386644439,-500.0,0.00012886,2]
[338208437,1726386644448,-500.0,0.00012886,2]
[338208438,1726386644459,-1436.51,0.00012886,2]
[338208439,1726386644468,-500.0,0.00012886,2]
[338208440,1726386644478,-928.51,0.00012886,2]
[338208441,1726386644487,-842.4,0.00012886,2]
[338208442,1726386644496,-500.0,0.00012886,2]
[338208443,1726386644505,-1164.17,0.00012886,2]
[338208444,1726386644515,-645.17,0.00012886,2]
[338208445,1726386644523,-500.0,0.00012886,2]
[338208446,1726386644533,-639.18,0.00012886,2]
[338208447,1726386644542,-500.0,0.00012886,2]
[338208448,1726386644551,-591.77,0.00012886,2]
[338208449,1726386644560,-500.0,0.00012886,2]
[338208450,1726386644573,-602.89,0.00012886,2]
[338208451,1726386644582,-1098.11,0.00012886,2]
[338208452,1726386644661,-500.0,0.00012886,2]
[338208453,1726386644671,-715.1,0.00012886,2]
[338208454,1726386644686,-952.96,0.00012886,2]
[338208455,1726386644695,-1104.7,0.00012886,2]
[338208456,1726386644704,-621.97,0.00012886,2]
[338208457,1726386644713,-562.73,0.00012886,2]
[338208458,1726386644722,-500.0,0.00012886,2]
[338208459,1726386644731,-708.31,0.00012886,2]
[338208460,1726386644740,-665.16,0.00012886,2]
[338208461,1726386644751,-500.0,0.00012886,2]
[338208462,1726386644760,-500.0,0.00012886,2]
[338208463,1726386644769,-500.0,0.00012886,2]
[338208464,1726386644779,-500.0,0.00012886,2]
[338208465,1726386644788,-500.0,0.00012886,2]
[338208466,1726386644797,-1124.15,0.00012886,2]
[338208467,1726386644806,-1571.64,0.00012886,2]
[338208468,1726386644815,-503.67272119,0.00012886,2]
[338208469,1726386644824,-1574.41,0.00012886,2]
[338208470,1726386644833,-600.39,0.00012886,2]
[338208471,1726386644842,-500.0,0.00012886,2]
[338208472,1726386644852,-708.84,0.00012886,2]
[338208473,1726386644861,-720.71,0.00012886,2]
[338208474,1726386644870,-500.0,0.00012886,2]
[338208475,1726386644879,-500.0,0.00012886,2]
[338208476,1726386644887,-500.0,0.00012886,2]
[338208477,1726386644896,-500.0,0.00012886,2]
[338208478,1726386644906,-599.28408968,0.00012886,2]
[338208479,1726386644915,-650.12,0.00012886,2]
[338208480,1726386644924,-500.0,0.00012886,2]
[338208481,1726386644933,-500.0,0.00012886,2]
[338208482,1726386644942,-500.0,0.00012886,2]
[338208483,1726386644951,-500.0,0.00012886,2]
[338208484,1726386644960,-1249.23,0.00012886,2]
[338208485,1726386644969,-544.30614354,0.00012886,2]
[338208486,1726386644979,-500.0,0.00012886,2]
[338208487,1726386644988,-500.0,0.00012886,2]
[338208488,1726386644997,-708.48,0.00012886,2]
[338208489,1726386645007,-500.0,0.00012886,2]
[338208490,1726386645016,-802.37,0.00012886,2]
[338208491,1726386645025,-639.47,0.00012886,2]
[338208492,1726386645035,-556.09,0.00012886,2]
[338208493,1726386645044,-500.0,0.00012886,2]
[338208494,1726386645054,-500.0,0.00012886,2]
[338208495,1726386645063,-527.26,0.00012886,2]
[338208496,1726386645072,-500.0,0.00012886,2]
[338208497,1726386645082,-409.31417223,0.00012886,2]
[338208498,1726386645091,-1066.93,0.00012886,2]
[338208499,1726386645100,-646.44,0.00012886,2]
[338208500,1726386645109,-1656.57,0.00012886,2]
[338208501,1726386645118,-763.97,0.00012886,2]
[338208503,1726386645128,-1411.55,0.00012886,2]
[338208505,1726386645137,-500.0,0.00012886,2]
[338208507,1726386645146,-500.0,0.00012886,2]
[338208509,1726386645155,-500.0,0.00012886,2]
[338208511,1726386645165,-550.13,0.00012886,2]
[338208512,1726386645174,-500.0,0.00012886,2]
[338208514,1726386645183,-500.0,0.00012886,2]
[338208516,1726386645193,-546.41,0.00012886,2]
[338208518,1726386645203,-500.0,0.00012886,2]
[338208520,1726386645212,-500.0,0.00012886,2]
[338208522,1726386645222,-500.0,0.00012886,2]
[338208524,1726386645232,-1742.19,0.00012886,2]
[338208526,1726386645241,-500.0,0.00012886,2]
[338208528,1726386645251,-563.77,0.00012886,2]
[338208530,1726386645261,-500.0,0.00012886,2]
[338208532,1726386645271,-500.0,0.00012886,2]
[338208534,1726386645280,-500.0,0.00012886,2]
[338208536,1726386645293,-500.0,0.00012886,2]
[338208538,1726386645302,-500.0,0.00012886,2]
[338208540,1726386645311,-500.0,0.00012886,2]
[338208542,1726386645322,-500.0,0.00012886,2]
[338208544,1726386645331,-500.0,0.00012886,2]
[338208546,1726386645340,-574.37,0.00012886,2]
[338208548,1726386645349,-1322.16,0.00012886,2]
[338208551,1726386645379,-1524.68,0.00012886,2]
[338208553,1726386645389,-722.53,0.00012886,2]
[338208555,1726386645398,-1451.07,0.00012886,2]
[338208557,1726386645407,-724.0,0.00012886,2]
[338208559,1726386645417,-1263.3,0.00012886,2]
[338208561,1726386645427,-500.0,0.00012886,2]
[338208563,1726386645437,-831.32,0.00012886,2]
[338208565,1726386645446,-500.0,0.00012886,2]
[338208567,1726386645455,-1412.73,0.00012886,2]
[338208569,1726386645464,-535.97,0.00012886,2]
[338208571,1726386645474,-762.35,0.00012886,2]
[338208573,1726386645483,-592.82,0.00012886,2]
[338208574,1726386645493,-500.0,0.00012886,2]
[338208576,1726386645502,-150.0,0.00012886,2]
[338208578,1726386645512,-500.0,0.00012886,2]
[338208580,1726386645521,-1356.7,0.00012886,2]
[338208582,1726386645530,-698.9,0.00012886,2]
[338208584,1726386645538,-1023.51,0.00012886,2]
[338208586,1726386645547,-500.0,0.00012886,2]
[338208587,1726386645557,-654.13,0.00012886,2]
[338208588,1726386645567,-500.0,0.00012886,2]
[338208589,1726386645579,-500.0,0.00012886,2]
[338208590,1726386645590,-500.0,0.00012886,2]
[338208591,1726386645599,-805.52,0.00012886,2]
[338208592,1726386645609,-500.0,0.00012886,2]
[338208593,1726386645619,-500.0,0.00012886,2]
[338208594,1726386645629,-545.85,0.00012886,2]
[338208595,1726386645640,-500.0,0.00012886,2]
[338208596,1726386645651,-995.8,0.00012886,2]
[338208597,1726386645661,-1242.26,0.00012886,2]
[338208598,1726386645671,-160.89,0.00012893,2]
[338208599,1726386645681,-1600.0,0.000129,4]
[338208600,1726386645691,-939.30245818,0.00012929,2]
[338208601,1726386645699,-164.82475148,0.00012958,2]
[338208602,1726386645709,-1059.64,0.00013,2]
[338208603,1726386645718,-2113.01,0.00013056,2]
[338208604,1726386645728,-2238.96,0.00013056,2]
[338208605,1726386645737,-2019.7,0.00013056,2]
[338208606,1726386645746,-586.83,0.00013056,2]
[338208607,1726386645755,-3124.91,0.00013056,2]
[338208608,1726386645766,-968.98,0.00013056,2]
[338208609,1726386645776,-2456.08,0.00013056,2]
[338208610,1726386645785,-1949.11,0.00013056,2]
[338208611,1726386645794,-1848.91,0.00013056,2]
[338208612,1726386645803,-7557.05,0.00013056,2]
[338208613,1726386645812,-3493.4,0.00013056,2]
[338208614,1726386645821,-2992.82,0.00013056,2]
[338208615,1726386645830,-1981.17,0.00013056,2]
[338208616,1726386645840,-2109.44,0.00013056,2]
[338208617,1726386645849,-1429.35,0.00013056,2]
[338208618,1726386645859,-1380.26,0.00013056,2]
[338208619,1726386645868,-807.33,0.00013056,2]
[338208620,1726386645878,-673.25,0.00013056,2]
[338208621,1726386645887,-1456.37,0.00013056,2]
[338208622,1726386645896,-927.79,0.00013056,2]
[338208623,1726386645905,-1084.0,0.00013056,2]
[338208624,1726386645915,-1156.39,0.00013056,2]
[338208625,1726386645925,-1829.98,0.00013057,2]
[338208626,1726386645935,-500.0,0.00013057,2]
[338208627,1726386645944,-1618.9,0.00013057,2]
[338208628,1726386645954,-500.0,0.00013057,2]
[338208629,1726386645963,-500.0,0.00013057,2]
[338208630,1726386645972,-2412.16,0.00013057,2]
[338208631,1726386645982,-902.27,0.00013057,2]
[338208632,1726386645992,-1114.81,0.00013057,2]
[338208633,1726386646002,-590.87,0.00013057,2]
[338208634,1726386646011,-1291.36,0.00013057,2]
[338208635,1726386646022,-3078.06,0.00013057,2]
[338208636,1726386646031,-1805.22,0.00013057,2]
[338208637,1726386646041,-1393.41,0.00013057,2]
[338208638,1726386646053,-619.5,0.00013057,2]
[338208639,1726386646062,-1836.24,0.00013057,2]
[338208640,1726386646071,-500.0,0.00013057,2]
[338208641,1726386646081,-1437.52,0.00013057,2]
[338208642,1726386646090,-748.26,0.00013057,2]
[338208643,1726386646099,-1080.77,0.00013057,2]
[338208644,1726386646110,-515.37,0.00013057,2]
[338208645,1726386646119,-752.33,0.00013057,2]
[338208646,1726386646128,-618.21,0.00013057,2]
[338208647,1726386646140,-579.73,0.00013057,2]
[338208648,1726386646151,-1002.53,0.00013057,2]
[338208649,1726386646161,-500.0,0.00013057,2]
[338208650,1726386646172,-515.5,0.00013057,2]
[338208651,1726386646182,-1779.54,0.00013057,2]
[338208652,1726386646191,-651.76,0.00013057,2]
[338208653,1726386646200,-1776.68,0.00013057,2]
[338208654,1726386646210,-500.0,0.00013057,2]
[338208655,1726386646219,-500.0,0.00013057,2]
[338208656,1726386646229,-500.0,0.00013057,2]
[338208657,1726386646239,-2137.83,0.00013057,2]
[338208658,1726386646248,-1091.66,0.00013057,2]
[338208659,1726386646257,-2288.36,0.00013057,2]
[338208660,1726386646267,-1983.39,0.00013057,2]
[338208661,1726386646276,-500.0,0.00013057,2]
[338208662,1726386646286,-589.98,0.00013057,2]
[338208663,1726386646296,-500.0,0.00013057,2]
[338208664,1726386646305,-500.0,0.00013057,2]
[338208665,1726386646315,-500.0,0.00013057,2]
[338208666,1726386646324,-646.3,0.00013057,2]
[338208667,1726386646334,-1741.77,0.00013057,2]
[338208668,1726386646343,-938.18,0.00013057,2]
[338208669,1726386646353,-528.66,0.00013057,2]
[338208670,1726386646363,-1133.43,0.00013057,2]
[338208671,1726386646381,-1044.98,0.00013057,2]
[338208672,1726386646390,-2653.92,0.00013057,2]
[338208673,1726386646399,-2096.53,0.00013057,2]
[338208674,1726386646408,-1005.33,0.00013057,2]
[338208675,1726386646418,-1243.03,0.00013057,2]
[338208676,1726386646428,-1748.44,0.00013057,2]